[Event "*** Titled Tuesday Blitz"]
[Site "Chess.com"]
[Date "2021.03.09"]
[Round "6"]
[White "mapleaff"]
[Black "SerGo055"]
[Result "0-1"]
[WhiteElo "2408"]
[BlackElo "2599"]
[TimeControl "180+1"]
[EndTime "11:10:43 PST"]
[Termination "SerGo055 won on time"]

1. e4 {[%clk 0:03:00]} 1... d5 {[%clk 0:02:59.7]} 2. exd5 {[%clk 0:02:56.1]}
2... Qxd5 {[%clk 0:02:58.2]} 3. Nc3 {[%clk 0:02:56.2]} 3... Qd8 {[%clk
0:02:55.6]} 4. Nf3 {[%clk 0:02:55]} 4... Nf6 {[%clk 0:02:55.7]} 5. h3 {[%clk
0:02:53.1]} 5... Bf5 {[%clk 0:02:52.5]} 6. Bc4 {[%clk 0:02:50.1]} 6... e6 {[%clk
0:02:51.6]} 7. d3 {[%clk 0:02:49.6]} 7... Be7 {[%clk 0:02:49.5]} 8. Ne2 {[%clk
0:02:47.4]} 8... O-O {[%clk 0:02:48.9]} 9. Ng3 {[%clk 0:02:47.2]} 9... Bg6
{[%clk 0:02:48.3]} 10. O-O {[%clk 0:02:43.8]} 10... c5 {[%clk 0:02:42.8]} 11.
Ne5 {[%clk 0:02:39.4]} 11... Qc7 {[%clk 0:02:34.9]} 12. Bf4 {[%clk 0:02:14.7]}
12... Bd6 {[%clk 0:02:34]} 13. Re1 {[%clk 0:01:58.9]} 13... Nc6 {[%clk
0:02:27.5]} 14. Nxg6 {[%clk 0:01:48.9]} 14... hxg6 {[%clk 0:02:24]} 15. Bxd6
{[%clk 0:01:40.2]} 15... Qxd6 {[%clk 0:02:24.9]} 16. a3 {[%clk 0:01:33]} 16...
Rfd8 {[%clk 0:02:14.2]} 17. Ne4 {[%clk 0:01:27.7]} 17... Nxe4 {[%clk 0:02:01.2]}
18. Rxe4 {[%clk 0:01:28.6]} 18... Nd4 {[%clk 0:01:56.5]} 19. Qd2 {[%clk
0:01:17.7]} 19... b5 {[%clk 0:01:52.8]} 20. Ba2 {[%clk 0:01:16.4]} 20... Nf5
{[%clk 0:01:30.7]} 21. Rae1 {[%clk 0:01:13]} 21... c4 {[%clk 0:01:26.4]} 22. Qa5
{[%clk 0:00:59.4]} 22... cxd3 {[%clk 0:01:21.9]} 23. Rxe6 {[%clk 0:00:44.4]}
23... Qc5 {[%clk 0:00:32.2]} 24. cxd3 {[%clk 0:00:04.8]} 24... fxe6 {[%clk
0:00:31.5]} 25. Bxe6+ {[%clk 0:00:05.3]} 25... Kh7 {[%clk 0:00:29.8]} 26. Qd2
{[%clk 0:00:02.1]} 26... Re8 {[%clk 0:00:12]} 27. Qg5 {[%clk 0:00:02.1]} 27...
Rad8 {[%clk 0:00:09.5]} 28. Kh2 {[%clk 0:00:01.3]} 28... Qd6+ {[%clk 0:00:08.1]}
0-1

[Event "*** Titled Tuesday Blitz"]
[Site "Chess.com"]
[Date "2021.03.09"]
[Round "6"]
[White "chessprincesa1"]
[Black "eCztery"]
[Result "0-1"]
[WhiteElo "2251"]
[BlackElo "2439"]
[TimeControl "180+1"]
[EndTime "11:10:43 PST"]
[Termination "eCztery won on time"]

1. d4 {[%clk 0:02:46.1]} 1... Nf6 {[%clk 0:02:56.5]} 2. c4 {[%clk 0:02:45.8]}
2... e6 {[%clk 0:02:55.1]} 3. Nc3 {[%clk 0:02:45.7]} 3... Bb4 {[%clk 0:02:53.6]}
4. a3 {[%clk 0:02:45.6]} 4... Bxc3+ {[%clk 0:02:53]} 5. bxc3 {[%clk 0:02:46.5]}
5... O-O {[%clk 0:02:51.6]} 6. f3 {[%clk 0:02:46.9]} 6... d5 {[%clk 0:02:47.9]}
7. cxd5 {[%clk 0:02:44.3]} 7... exd5 {[%clk 0:02:48.8]} 8. e3 {[%clk 0:02:44.1]}
8... c5 {[%clk 0:02:45.2]} 9. Bd3 {[%clk 0:02:44.2]} 9... c4 {[%clk 0:02:44.5]}
10. Bc2 {[%clk 0:02:43.8]} 10... Nc6 {[%clk 0:02:36.1]} 11. Ne2 {[%clk
0:02:44.1]} 11... Kh8 {[%clk 0:02:27.9]} 12. O-O {[%clk 0:02:43.1]} 12... Ng8
{[%clk 0:02:25.4]} 13. e4 {[%clk 0:02:40.4]} 13... dxe4 {[%clk 0:02:19.3]} 14.
fxe4 {[%clk 0:02:39]} 14... Bg4 {[%clk 0:02:19.5]} 15. Qe1 {[%clk 0:02:11.9]}
15... Bxe2 {[%clk 0:02:13.5]} 16. Qxe2 {[%clk 0:02:12.8]} 16... b5 {[%clk
0:02:13.8]} 17. Qh5 {[%clk 0:02:07.6]} 17... Nxd4 {[%clk 0:01:55.1]} 18. cxd4
{[%clk 0:02:02.6]} 18... Qxd4+ {[%clk 0:01:54.7]} 19. Kh1 {[%clk 0:02:02]} 19...
Qxa1 {[%clk 0:01:53.7]} 20. Qxb5 {[%clk 0:01:45.5]} 20... Qc3 {[%clk 0:01:48.8]}
21. Qa4 {[%clk 0:01:07.8]} 21... Rae8 {[%clk 0:01:38.5]} 22. Bb1 {[%clk
0:00:54.1]} 22... Re6 {[%clk 0:01:29.3]} 23. Qd1 {[%clk 0:00:21.9]} 23... Rf6
{[%clk 0:01:25.7]} 24. Rg1 {[%clk 0:00:18.7]} 24... Nh6 {[%clk 0:01:19.3]} 25.
Bg5 {[%clk 0:00:17.1]} 25... Rg6 {[%clk 0:01:17]} 26. Bf4 {[%clk 0:00:13.9]}
26... Ng4 {[%clk 0:01:16.8]} 27. Rf1 {[%clk 0:00:07.4]} 27... h5 {[%clk
0:01:08.9]} 28. e5 {[%clk 0:00:07.3]} 28... Rb6 {[%clk 0:01:08.1]} 29. h3 {[%clk
0:00:06.9]} 29... Nh6 {[%clk 0:00:31.5]} 30. Qxh5 {[%clk 0:00:05.2]} 30... Kg8
{[%clk 0:00:30.2]} 31. Qg5 {[%clk 0:00:03.3]} 31... Rfb8 {[%clk 0:00:24.2]} 32.
e6 {[%clk 0:00:02]} 32... Rxb1 {[%clk 0:00:20.9]} 33. exf7+ {[%clk 0:00:01.1]}
33... Nxf7 {[%clk 0:00:21.3]} 0-1

[Event "*** Titled Tuesday Blitz"]
[Site "Chess.com"]
[Date "2021.03.09"]
[Round "6"]
[White "Zhigalko_Sergei"]
[Black "Sibelephant"]
[Result "0-1"]
[WhiteElo "2940"]
[BlackElo "3098"]
[TimeControl "180+1"]
[EndTime "11:10:44 PST"]
[Termination "Sibelephant won on time"]

1. e4 {[%clk 0:03:00.9]} 1... c5 {[%clk 0:02:57.5]} 2. c3 {[%clk 0:03:01.3]}
2... d6 {[%clk 0:02:52]} 3. d4 {[%clk 0:03:01.5]} 3... Qc7 {[%clk 0:02:52.6]} 4.
Bd3 {[%clk 0:03:01]} 4... Nf6 {[%clk 0:02:48.9]} 5. h3 {[%clk 0:02:58.9]} 5...
e5 {[%clk 0:02:45.6]} 6. Nf3 {[%clk 0:02:58.4]} 6... Be7 {[%clk 0:02:45.4]} 7.
O-O {[%clk 0:02:58]} 7... O-O {[%clk 0:02:46]} 8. Re1 {[%clk 0:02:57.9]} 8...
Re8 {[%clk 0:02:37]} 9. a4 {[%clk 0:02:48.2]} 9... cxd4 {[%clk 0:02:11]} 10.
cxd4 {[%clk 0:02:47.2]} 10... exd4 {[%clk 0:02:11.5]} 11. Na3 {[%clk 0:02:28.3]}
11... Nc6 {[%clk 0:02:09.9]} 12. Nb5 {[%clk 0:02:27.9]} 12... Qb6 {[%clk
0:02:07.9]} 13. Nfxd4 {[%clk 0:02:01.6]} 13... a6 {[%clk 0:01:56.5]} 14. Nxc6
{[%clk 0:01:21.3]} 14... bxc6 {[%clk 0:01:56.7]} 15. Be3 {[%clk 0:01:21.7]}
15... c5 {[%clk 0:01:49.8]} 16. a5 {[%clk 0:01:13.3]} 16... Qc6 {[%clk
0:01:33.2]} 17. Nc3 {[%clk 0:01:08.9]} 17... Rb8 {[%clk 0:01:30.1]} 18. Bc2
{[%clk 0:01:04.5]} 18... Qc7 {[%clk 0:01:09.5]} 19. Bg5 {[%clk 0:00:50.5]} 19...
Rxb2 {[%clk 0:01:00.3]} 20. Ba4 {[%clk 0:00:49.6]} 20... Rf8 {[%clk 0:00:57.9]}
21. Bb3 {[%clk 0:00:32.3]} 21... Be6 {[%clk 0:00:34.1]} 22. Bxe6 {[%clk
0:00:05.6]} 22... fxe6 {[%clk 0:00:35]} 23. e5 {[%clk 0:00:05.9]} 23... dxe5
{[%clk 0:00:32]} 24. Bxf6 {[%clk 0:00:05.9]} 24... Bxf6 {[%clk 0:00:23.7]} 25.
Ne4 {[%clk 0:00:06.6]} 25... c4 {[%clk 0:00:24.2]} 26. Qg4 {[%clk 0:00:06.3]}
26... Qc6 {[%clk 0:00:22.9]} 27. Rac1 {[%clk 0:00:06.7]} 27... Rb4 {[%clk
0:00:13.6]} 28. Red1 {[%clk 0:00:06.9]} 28... Be7 {[%clk 0:00:13.8]} 29. Rc2
{[%clk 0:00:05.7]} 29... Rf4 {[%clk 0:00:13.5]} 30. Nf6+ {[%clk 0:00:01.8]}
30... Rxf6 {[%clk 0:00:12.1]} 31. Rcd2 {[%clk 0:00:01.2]} 31... h6 {[%clk
0:00:11.7]} 32. Rd7 {[%clk 0:00:01.6]} 32... Rb7 {[%clk 0:00:11.4]} 0-1

[Event "*** Titled Tuesday Blitz"]
[Site "Chess.com"]
[Date "2021.03.09"]
[Round "6"]
[White "KingCyber19"]
[Black "andrzej"]
[Result "0-1"]
[WhiteElo "2487"]
[BlackElo "2373"]
[TimeControl "180+1"]
[EndTime "11:10:45 PST"]
[Termination "andrzej won by checkmate"]

1. d4 {[%clk 0:03:00.9]} 1... Nf6 {[%clk 0:02:59.7]} 2. c4 {[%clk 0:03:01.2]}
2... c5 {[%clk 0:03:00.5]} 3. d5 {[%clk 0:03:01.2]} 3... b5 {[%clk 0:03:01.2]}
4. cxb5 {[%clk 0:03:02.1]} 4... a6 {[%clk 0:03:01.7]} 5. e3 {[%clk 0:03:02.8]}
5... e6 {[%clk 0:03:00.3]} 6. Nc3 {[%clk 0:03:02.3]} 6... Bb7 {[%clk 0:02:56.4]}
7. e4 {[%clk 0:02:58.1]} 7... axb5 {[%clk 0:02:43]} 8. Bxb5 {[%clk 0:02:57.3]}
8... Qa5 {[%clk 0:02:41.6]} 9. Bd2 {[%clk 0:02:54.6]} 9... Qb6 {[%clk
0:02:17.1]} 10. a4 {[%clk 0:02:52]} 10... Na6 {[%clk 0:02:05.6]} 11. Nf3 {[%clk
0:02:41.6]} 11... Nc7 {[%clk 0:01:59.6]} 12. dxe6 {[%clk 0:02:36.1]} 12... fxe6
{[%clk 0:01:56.9]} 13. Ne5 {[%clk 0:02:25.8]} 13... Nxb5 {[%clk 0:01:50.8]} 14.
Nxb5 {[%clk 0:02:26.7]} 14... Bxe4 {[%clk 0:01:42.7]} 15. O-O {[%clk 0:02:24.6]}
15... Be7 {[%clk 0:01:39.6]} 16. Nc4 {[%clk 0:02:21.3]} 16... Qb8 {[%clk
0:01:33.7]} 17. g3 {[%clk 0:02:07]} 17... Nd5 {[%clk 0:00:55.3]} 18. Bf4 {[%clk
0:01:51.4]} 18... Nxf4 {[%clk 0:00:51.3]} 19. Ncd6+ {[%clk 0:01:49.1]} 19...
Bxd6 {[%clk 0:00:47.2]} 20. Nxd6+ {[%clk 0:01:47.9]} 20... Qxd6 {[%clk
0:00:44.8]} 21. f3 {[%clk 0:01:39.4]} 21... Qxd1 {[%clk 0:00:34.9]} 22. Raxd1
{[%clk 0:01:39.3]} 22... Nh3+ {[%clk 0:00:34.7]} 23. Kg2 {[%clk 0:01:39]} 23...
Bf5 {[%clk 0:00:35.2]} 24. g4 {[%clk 0:01:38.4]} 24... Nf4+ {[%clk 0:00:35.5]}
25. Kg3 {[%clk 0:01:38.3]} 25... Bg6 {[%clk 0:00:26.1]} 26. Kxf4 {[%clk
0:01:36.3]} 26... Rxa4+ {[%clk 0:00:26.7]} 27. Kg3 {[%clk 0:01:36.8]} 27... Ke7
{[%clk 0:00:24.8]} 28. Rd2 {[%clk 0:01:28.9]} 28... Rb8 {[%clk 0:00:25.1]} 29.
Rfd1 {[%clk 0:01:27.4]} 29... d5 {[%clk 0:00:25.7]} 30. h4 {[%clk 0:01:26.2]}
30... Rab4 {[%clk 0:00:25.9]} 31. h5 {[%clk 0:01:26]} 31... Bf7 {[%clk 0:00:26]}
32. Re1 {[%clk 0:01:23.9]} 32... d4 {[%clk 0:00:23.5]} 33. Re5 {[%clk
0:01:20.3]} 33... Rxb2 {[%clk 0:00:21.5]} 34. Rd3 {[%clk 0:01:18.4]} 34... R8b3
{[%clk 0:00:19.8]} 35. Rd1 {[%clk 0:01:19]} 35... Rc3 {[%clk 0:00:19.3]} 36. Rg5
{[%clk 0:01:18.1]} 36... g6 {[%clk 0:00:18.4]} 37. h6 {[%clk 0:01:17.6]} 37...
Rbb3 {[%clk 0:00:18.8]} 38. Rf1 {[%clk 0:01:16.9]} 38... d3 {[%clk 0:00:18.9]}
39. Re5 {[%clk 0:01:14.8]} 39... d2 {[%clk 0:00:18.9]} 40. Rd1 {[%clk
0:01:12.8]} 40... Rxf3+ {[%clk 0:00:19.2]} 41. Kg2 {[%clk 0:01:13.7]} 41... Rfd3
{[%clk 0:00:19.6]} 42. Kh2 {[%clk 0:01:14.6]} 42... c4 {[%clk 0:00:19.5]} 43.
Rc5 {[%clk 0:01:14.6]} 43... c3 {[%clk 0:00:19.4]} 44. Rc7+ {[%clk 0:01:13.5]}
44... Kf6 {[%clk 0:00:19.8]} 45. Rf1+ {[%clk 0:01:05.5]} 45... Kg5 {[%clk
0:00:19.8]} 46. Rcxf7 {[%clk 0:01:05.1]} 46... c2 {[%clk 0:00:19.3]} 47. Rxh7
{[%clk 0:01:00.6]} 47... Rh3+ {[%clk 0:00:19.4]} 48. Kg2 {[%clk 0:00:59.8]}
48... Rbg3+ {[%clk 0:00:19.9]} 49. Kf2 {[%clk 0:00:59.7]} 49... Rf3+ {[%clk
0:00:20.4]} 50. Kg2 {[%clk 0:00:59.7]} 50... Rxf1 {[%clk 0:00:19.5]} 51. Rd7
{[%clk 0:00:56.8]} 51... d1=Q {[%clk 0:00:16.1]} 52. h7 {[%clk 0:00:54.3]} 52...
Qf3# {[%clk 0:00:15.6]} 0-1

[Event "*** Titled Tuesday Blitz"]
[Site "Chess.com"]
[Date "2021.03.09"]
[Round "6"]
[White "mr_gustavo"]
[Black "SanchezKelvin"]
[Result "0-1"]
[WhiteElo "2390"]
[BlackElo "2589"]
[TimeControl "180+1"]
[EndTime "11:10:47 PST"]
[Termination "SanchezKelvin won by resignation"]

1. e4 {[%clk 0:03:00.9]} 1... c5 {[%clk 0:02:59.3]} 2. Nf3 {[%clk 0:02:52.1]}
2... d6 {[%clk 0:02:59.3]} 3. d4 {[%clk 0:02:50.2]} 3... cxd4 {[%clk 0:02:59.5]}
4. Nxd4 {[%clk 0:02:51.1]} 4... Nf6 {[%clk 0:02:59.2]} 5. Nc3 {[%clk 0:02:51.7]}
5... g6 {[%clk 0:02:59.7]} 6. Be3 {[%clk 0:02:48]} 6... Bg7 {[%clk 0:02:59.6]}
7. f3 {[%clk 0:02:46.9]} 7... O-O {[%clk 0:03:00.5]} 8. Qd2 {[%clk 0:02:45.2]}
8... Nc6 {[%clk 0:03:01.1]} 9. O-O-O {[%clk 0:02:44.9]} 9... Nxd4 {[%clk
0:03:01.2]} 10. Bxd4 {[%clk 0:02:44.3]} 10... Be6 {[%clk 0:03:02.1]} 11. g4
{[%clk 0:02:40.8]} 11... Qa5 {[%clk 0:03:01.2]} 12. Kb1 {[%clk 0:02:38.5]} 12...
Rfc8 {[%clk 0:03:00.3]} 13. a3 {[%clk 0:02:18.7]} 13... Rab8 {[%clk 0:02:57.5]}
14. Bxf6 {[%clk 0:02:16.9]} 14... Bxf6 {[%clk 0:02:55.5]} 15. Nd5 {[%clk
0:02:15]} 15... Qxd2 {[%clk 0:02:55.7]} 16. Nxf6+ {[%clk 0:02:14.9]} 16... Kg7
{[%clk 0:02:55.3]} 17. Rxd2 {[%clk 0:02:15.8]} 17... Kxf6 {[%clk 0:02:55.1]} 18.
h4 {[%clk 0:02:11.7]} 18... Ke5 {[%clk 0:02:54.9]} 19. h5 {[%clk 0:02:10.4]}
19... Kf4 {[%clk 0:02:51.4]} 20. Bd3 {[%clk 0:01:41.2]} 20... g5 {[%clk
0:02:38.9]} 21. e5 {[%clk 0:01:26]} 21... dxe5 {[%clk 0:02:27.8]} 22. Bxh7
{[%clk 0:01:23.8]} 22... Rd8 {[%clk 0:01:54.5]} 23. Re2 {[%clk 0:01:01]} 23...
Bd5 {[%clk 0:01:08.1]} 24. Rf1 {[%clk 0:00:53]} 24... e6 {[%clk 0:00:58.5]} 25.
Be4 {[%clk 0:00:41.6]} 25... f5 {[%clk 0:00:53.8]} 26. Bd3 {[%clk 0:00:29.6]}
26... Bxf3 {[%clk 0:00:28]} 27. gxf5 {[%clk 0:00:27.1]} 27... Rxd3 {[%clk
0:00:24.3]} 28. cxd3 {[%clk 0:00:21.6]} 28... exf5 {[%clk 0:00:24]} 29. Rh2
{[%clk 0:00:14]} 29... g4 {[%clk 0:00:23.3]} 30. h6 {[%clk 0:00:14.6]} 30... Rh8
{[%clk 0:00:21.7]} 31. h7 {[%clk 0:00:11.4]} 31... Kg3 {[%clk 0:00:20.6]} 32.
Rh6 {[%clk 0:00:10.8]} 32... f4 {[%clk 0:00:20.6]} 33. Kc2 {[%clk 0:00:09.4]}
33... Bg2 {[%clk 0:00:19.7]} 34. Re1 {[%clk 0:00:08.1]} 34... f3 {[%clk
0:00:20.1]} 35. Rxe5 {[%clk 0:00:08.1]} 35... f2 {[%clk 0:00:20.1]} 36. Rf5
{[%clk 0:00:06.7]} 36... Bf3 {[%clk 0:00:19.7]} 37. Rxf3+ {[%clk 0:00:03.5]}
37... Kxf3 {[%clk 0:00:19]} 38. Rf6+ {[%clk 0:00:03.8]} 38... Kg2 {[%clk
0:00:19.2]} 0-1

[Event "*** Titled Tuesday Blitz"]
[Site "Chess.com"]
[Date "2021.03.09"]
[Round "6"]
[White "VitaliyBernadskiy"]
[Black "rasmussvane"]
[Result "1-0"]
[WhiteElo "2763"]
[BlackElo "2942"]
[TimeControl "180+1"]
[EndTime "11:10:48 PST"]
[Termination "VitaliyBernadskiy won on time"]

1. d4 {[%clk 0:03:00.9]} 1... Nf6 {[%clk 0:02:59.5]} 2. c4 {[%clk 0:02:59.9]}
2... e6 {[%clk 0:02:59.9]} 3. Nf3 {[%clk 0:02:59]} 3... d5 {[%clk 0:02:59.7]} 4.
Bg5 {[%clk 0:02:59.2]} 4... h6 {[%clk 0:02:58.9]} 5. Bxf6 {[%clk 0:02:58.7]}
5... Qxf6 {[%clk 0:02:59.8]} 6. Nbd2 {[%clk 0:02:59.1]} 6... g6 {[%clk
0:02:36.4]} 7. g3 {[%clk 0:02:59.1]} 7... Bg7 {[%clk 0:02:35.9]} 8. Bg2 {[%clk
0:02:58.9]} 8... O-O {[%clk 0:02:36.5]} 9. O-O {[%clk 0:02:56.2]} 9... c5 {[%clk
0:02:22.6]} 10. cxd5 {[%clk 0:02:55.5]} 10... exd5 {[%clk 0:02:22.8]} 11. dxc5
{[%clk 0:02:27.8]} 11... Qxb2 {[%clk 0:02:23.7]} 12. Nb3 {[%clk 0:02:27.6]}
12... Nc6 {[%clk 0:02:04.8]} 13. Qxd5 {[%clk 0:02:22.4]} 13... Be6 {[%clk
0:01:53.7]} 14. Qd3 {[%clk 0:02:19.7]} 14... Qa3 {[%clk 0:01:02.6]} 15. Rab1
{[%clk 0:02:01.3]} 15... Qxa2 {[%clk 0:00:58.8]} 16. Rfc1 {[%clk 0:01:15.8]}
16... Rfd8 {[%clk 0:00:51.6]} 17. Qb5 {[%clk 0:01:15.9]} 17... Rab8 {[%clk
0:00:50.4]} 18. e3 {[%clk 0:01:13.8]} 18... Bd5 {[%clk 0:00:34.6]} 19. Nfd4
{[%clk 0:00:49.9]} 19... Bxg2 {[%clk 0:00:32.5]} 20. Kxg2 {[%clk 0:00:50.8]}
20... Nxd4 {[%clk 0:00:30.8]} 21. exd4 {[%clk 0:00:45.3]} 21... Bxd4 {[%clk
0:00:18]} 22. Nxd4 {[%clk 0:00:42.8]} 22... Rxd4 {[%clk 0:00:18.9]} 23. c6
{[%clk 0:00:41.5]} 23... b6 {[%clk 0:00:13.5]} 24. Rd1 {[%clk 0:00:17]} 24...
Rxd1 {[%clk 0:00:09.1]} 25. Rxd1 {[%clk 0:00:17.9]} 25... Rc8 {[%clk 0:00:04.2]}
26. c7 {[%clk 0:00:14.1]} 26... Qe6 {[%clk 0:00:04.2]} 27. Rd8+ {[%clk
0:00:12.4]} 27... Kh7 {[%clk 0:00:04.7]} 28. Qb2 {[%clk 0:00:10.9]} 28... g5
{[%clk 0:00:02.9]} 29. Qc2+ {[%clk 0:00:09.5]} 29... f5 {[%clk 0:00:02.7]} 30.
Rxc8 {[%clk 0:00:08.8]} 30... Qxc8 {[%clk 0:00:02.9]} 31. Qc6 {[%clk 0:00:08.8]}
31... b5 {[%clk 0:00:02.7]} 32. Qd6 {[%clk 0:00:07.4]} 32... b4 {[%clk
0:00:02.4]} 33. Qd8 {[%clk 0:00:07.5]} 33... Qb8 {[%clk 0:00:03]} 34. cxb8=Q
{[%clk 0:00:06.6]} 1-0

[Event "*** Titled Tuesday Blitz"]
[Site "Chess.com"]
[Date "2021.03.09"]
[Round "6"]
[White "elextranjero00"]
[Black "SharapovEvgeny"]
[Result "0-1"]
[WhiteElo "2641"]
[BlackElo "2500"]
[TimeControl "180+1"]
[EndTime "11:10:48 PST"]
[Termination "SharapovEvgeny won on time"]

1. d4 {[%clk 0:03:00.9]} 1... d5 {[%clk 0:02:59.5]} 2. c4 {[%clk 0:03:00.9]}
2... c6 {[%clk 0:02:59.6]} 3. Nf3 {[%clk 0:02:59.1]} 3... Nf6 {[%clk 0:02:59]}
4. Nc3 {[%clk 0:02:59.2]} 4... g6 {[%clk 0:02:58.6]} 5. Bf4 {[%clk 0:02:56]}
5... Bg7 {[%clk 0:02:58.1]} 6. e3 {[%clk 0:02:56.2]} 6... O-O {[%clk 0:02:57]}
7. Rc1 {[%clk 0:02:56.4]} 7... Bg4 {[%clk 0:02:55.6]} 8. h3 {[%clk 0:02:55.9]}
8... Bxf3 {[%clk 0:02:54.9]} 9. Qxf3 {[%clk 0:02:56.8]} 9... e6 {[%clk
0:02:54.3]} 10. Bd3 {[%clk 0:02:42.7]} 10... Nbd7 {[%clk 0:02:52.1]} 11. O-O
{[%clk 0:02:42]} 11... Re8 {[%clk 0:02:49.3]} 12. Rfd1 {[%clk 0:02:40.8]} 12...
Qe7 {[%clk 0:02:45.4]} 13. Bh2 {[%clk 0:02:36.8]} 13... e5 {[%clk 0:02:40.3]}
14. Bf1 {[%clk 0:02:03.4]} 14... exd4 {[%clk 0:02:37.6]} 15. exd4 {[%clk
0:02:03.1]} 15... dxc4 {[%clk 0:02:36.7]} 16. Bxc4 {[%clk 0:02:02.8]} 16... Nb6
{[%clk 0:02:35.9]} 17. Bb3 {[%clk 0:02:02.8]} 17... Rad8 {[%clk 0:02:33.6]} 18.
Be5 {[%clk 0:01:59.5]} 18... Nfd5 {[%clk 0:02:30]} 19. Re1 {[%clk 0:01:38.3]}
19... f6 {[%clk 0:02:21.4]} 20. Bc7 {[%clk 0:01:17.3]} 20... Qxc7 {[%clk
0:02:11.6]} 21. Rxe8+ {[%clk 0:01:16]} 21... Rxe8 {[%clk 0:02:10.9]} 22. Nxd5
{[%clk 0:01:10.3]} 22... Nxd5 {[%clk 0:02:09.9]} 23. Bxd5+ {[%clk 0:01:10.4]}
23... Kh8 {[%clk 0:02:09.3]} 24. Bb3 {[%clk 0:01:08]} 24... f5 {[%clk
0:02:02.3]} 25. Rd1 {[%clk 0:00:47.9]} 25... Rd8 {[%clk 0:01:57.2]} 26. Qe3
{[%clk 0:00:36.3]} 26... Qb6 {[%clk 0:01:54.5]} 27. Qe7 {[%clk 0:00:19.5]} 27...
h5 {[%clk 0:01:12.5]} 28. d5 {[%clk 0:00:16.5]} 28... cxd5 {[%clk 0:01:11.4]}
29. Rxd5 {[%clk 0:00:14.2]} 29... Rxd5 {[%clk 0:01:10]} 30. Bxd5 {[%clk
0:00:14.3]} 30... Qxb2 {[%clk 0:01:02.4]} 31. g3 {[%clk 0:00:07.8]} 31... Qe5
{[%clk 0:00:55.4]} 32. Qxb7 {[%clk 0:00:06.5]} 32... a5 {[%clk 0:00:54.4]} 33.
Kg2 {[%clk 0:00:04.4]} 33... Qd6 {[%clk 0:00:43.1]} 34. Qa8+ {[%clk 0:00:03.9]}
34... Kh7 {[%clk 0:00:38.9]} 35. Qxa5 {[%clk 0:00:04.4]} 35... h4 {[%clk
0:00:34.2]} 36. gxh4 {[%clk 0:00:05.3]} 36... Qf4 {[%clk 0:00:32.1]} 37. Qb5
{[%clk 0:00:05.3]} 37... Bd4 {[%clk 0:00:28.1]} 38. Bf3 {[%clk 0:00:05.4]} 38...
Qxh4 {[%clk 0:00:25]} 39. Qd7+ {[%clk 0:00:05.9]} 39... Kh6 {[%clk 0:00:22.1]}
0-1

[Event "*** Titled Tuesday Blitz"]
[Site "Chess.com"]
[Date "2021.03.09"]
[Round "6"]
[White "Artem_Sadovsky"]
[Black "Ghost_Pepper"]
[Result "1-0"]
[WhiteElo "2582"]
[BlackElo "2397"]
[TimeControl "180+1"]
[EndTime "11:10:48 PST"]
[Termination "Artem_Sadovsky won by resignation"]

1. g3 {[%clk 0:03:00.9]} 1... d5 {[%clk 0:02:59.5]} 2. Bg2 {[%clk 0:03:01.2]}
2... Nf6 {[%clk 0:02:59.9]} 3. c4 {[%clk 0:03:01.6]} 3... c6 {[%clk 0:02:56.9]}
4. b3 {[%clk 0:03:01.4]} 4... g6 {[%clk 0:02:55.4]} 5. Bb2 {[%clk 0:03:01.7]}
5... Bg7 {[%clk 0:02:56]} 6. Nf3 {[%clk 0:03:00.7]} 6... O-O {[%clk 0:02:55.7]}
7. O-O {[%clk 0:03:01.3]} 7... Re8 {[%clk 0:02:49.9]} 8. d3 {[%clk 0:03:00.7]}
8... Nbd7 {[%clk 0:02:48.5]} 9. Nbd2 {[%clk 0:03:00.8]} 9... e5 {[%clk
0:02:48.5]} 10. cxd5 {[%clk 0:03:00.5]} 10... cxd5 {[%clk 0:02:48.4]} 11. e4
{[%clk 0:03:00.9]} 11... d4 {[%clk 0:02:41.8]} 12. Nc4 {[%clk 0:02:59.7]} 12...
Bf8 {[%clk 0:02:29.5]} 13. a4 {[%clk 0:02:50.2]} 13... b6 {[%clk 0:02:29.5]} 14.
a5 {[%clk 0:02:11.2]} 14... Ba6 {[%clk 0:02:28.2]} 15. axb6 {[%clk 0:02:05]}
15... axb6 {[%clk 0:02:29.1]} 16. Ncxe5 {[%clk 0:01:48.3]} 16... Nxe5 {[%clk
0:02:19.7]} 17. Nxe5 {[%clk 0:01:49.2]} 17... Rxe5 {[%clk 0:02:15.1]} 18. f4
{[%clk 0:01:50.1]} 18... Re8 {[%clk 0:02:09.8]} 19. e5 {[%clk 0:01:38.4]} 19...
Nd5 {[%clk 0:02:03.5]} 20. Bxd4 {[%clk 0:01:38.8]} 20... Nb4 {[%clk 0:01:49]}
21. Bf2 {[%clk 0:01:28.1]} 21... Rc8 {[%clk 0:01:39.1]} 22. Rxa6 {[%clk
0:01:14.9]} 22... Nxa6 {[%clk 0:01:40]} 23. d4 {[%clk 0:01:15.3]} 23... Qd7
{[%clk 0:00:56.5]} 24. g4 {[%clk 0:00:59.8]} 24... Nb4 {[%clk 0:00:47]} 25. Qf3
{[%clk 0:00:57.1]} 25... Red8 {[%clk 0:00:39.2]} 26. f5 {[%clk 0:00:56]} 26...
Nd5 {[%clk 0:00:38.1]} 27. Bh4 {[%clk 0:00:42.7]} 27... Rc3 {[%clk 0:00:34.5]}
28. Qf2 {[%clk 0:00:31]} 28... Ne3 {[%clk 0:00:23.7]} 29. Re1 {[%clk 0:00:14.1]}
29... Nxg2 {[%clk 0:00:22.6]} 30. Kxg2 {[%clk 0:00:11.4]} 30... Qxd4 {[%clk
0:00:20.6]} 31. Bxd8 {[%clk 0:00:11.9]} 31... Qxd8 {[%clk 0:00:21.1]} 32. e6
{[%clk 0:00:11.9]} 32... Qd5+ {[%clk 0:00:21.2]} 33. Kf1 {[%clk 0:00:12.1]}
33... Qd3+ {[%clk 0:00:20.4]} 34. Kg2 {[%clk 0:00:12.2]} 34... Bc5 {[%clk
0:00:18.6]} 35. exf7+ {[%clk 0:00:11.4]} 35... Kxf7 {[%clk 0:00:16.8]} 36. fxg6+
{[%clk 0:00:11.7]} 36... Kxg6 {[%clk 0:00:16]} 37. Re6+ {[%clk 0:00:12.3]} 37...
Kg7 {[%clk 0:00:13.3]} 38. Qf6+ {[%clk 0:00:12.7]} 38... Kg8 {[%clk 0:00:13.3]}
39. Re8+ {[%clk 0:00:13.4]} 1-0